bitfinex/quotes_ETHUSD_20240710
["timestamp","ask_amount","ask_price","bid_price","bid_amount"]
[1720569600633,0.28907,3075.3,3074.6,1.062]
[1720569601713,0.28907,3075.3,3074.9,1.062]
[1720569601918,3.55,3075.4,3074.9,1.062]
[1720569602984,3.0,3075.4,3075.1,1.062]
[1720569603286,1.062,3075.2,3073.7,2.62744]
[1720569603490,2.2953,3074.9,3073.9,1.062]
[1720569603685,2.2953,3074.9,3073.8,0.0650544]
[1720569603987,2.4348,3075.6,3074.3,2.376]
[1720569604220,3.10046566,3075.6,3074.4,0.2376]
[1720569604425,3.0,3075.5,3074.4,0.2376]
[1720569604602,2.2842,3075.4,3073.6,0.06504042]
[1720569604806,2.2842,3075.4,3073.6,2.4292]
[1720569605004,0.55,3075.3,3074.5,1.062]
[1720569605188,2.4433,3075.2,3074.5,1.062]
[1720569605390,2.4433,3075.0,3074.5,1.062]
[1720569605945,2.4433,3075.0,3074.3,1.062]
[1720569606442,2.68763,3075.0,3074.3,1.062]
[1720569606615,3.0,3074.9,3074.3,1.062]
[1720569607611,1.1271431,3074.8,3074.3,1.062]
[1720569607944,1.12714283,3074.7,3074.3,1.062]
[1720569608103,1.12714283,3074.6,3074.5,1.062]
[1720569609824,1.12714283,3074.6,3074.3,1.062]
[1720569610023,1.12714283,3074.5,3074.3,1.062]
[1720569610315,1.12714283,3074.4,3074.3,1.062]
[1720569610941,2.3525,3074.7,3074.3,1.062]
[1720569611142,1.12714502,3074.6,3074.3,1.062]
[1720569611352,2.3525,3074.7,3074.3,1.062]
[1720569611512,1.12716138,3074.5,3073.7,2.3314]
[1720569611708,1.12716138,3074.4,3073.8,1.062]
[1720569611924,1.12716138,3074.3,3073.8,1.062]
[1720569612112,3.0,3074.6,3074.0,1.062]
[1720569612318,1.12731353,3074.5,3074.2,1.062]
[1720569612552,1.12731353,3074.4,3074.2,1.062]
[1720569612711,12.66882322,3075.4,3074.3,1.062]
[1720569612712,2.3577,3075.3,3074.3,1.062]
[1720569613057,4.52156933,3075.2,3074.6,1.062]
[1720569613209,4.12709933,3075.1,3074.6,1.062]
[1720569613412,1.12709933,3075.0,3074.6,1.062]
[1720569613612,1.12709933,3074.9,3074.6,1.062]
[1720569613847,2.3577,3074.7,3074.4,1.062]
[1720569614056,1.12709933,3074.6,3074.4,1.062]
[1720569614346,1.12718132,3074.5,3074.4,1.062]
[1720569617586,3.0,3074.9,3074.4,1.062]
[1720569617741,1.12711612,3074.5,3073.9,2.67074]
[1720569617941,1.12711612,3074.4,3074.0,0.267074]
[1720569618141,3.0,3074.9,3074.3,1.062]
[1720569618379,1.12710393,3074.8,3074.7,1.062]
[1720569618752,1.12710393,3074.8,3074.7,0.33936]
[1720569618951,1.12710393,3074.8,3074.7,1.40136]
[1720569620972,1.12695345,3074.8,3074.7,1.40136]
[1720569621484,1.12695807,3074.8,3074.7,1.40136]
[1720569624240,3.0,3075.7,3074.7,1.40136]
[1720569624440,1.12687293,3075.6,3075.4,1.062]
[1720569624671,1.12687293,3075.5,3075.4,1.062]
[1720569625384,1.12687293,3075.5,3075.2,1.062]
[1720569625677,1.12687293,3075.4,3075.2,1.062]
[1720569625862,1.12687293,3075.6,3075.2,1.062]
[1720569627677,1.12687293,3075.6,3074.5,2.3316]
[1720569627678,3.57976965,3075.5,3074.9,1.062]
[1720569627882,4.12696965,3075.4,3075.1,1.062]
[1720569628059,1.12696965,3075.3,3075.1,1.062]
[1720569628253,1.12696965,3075.2,3075.1,1.062]
[1720569630968,3.0,3075.4,3075.1,1.062]
[1720569631175,1.12695959,3075.3,3075.1,1.062]
[1720569631403,3.0,3075.4,3075.1,1.062]
[1720569631705,1.12695898,3075.3,3075.1,1.062]
[1720569631904,1.12695898,3075.2,3075.1,1.062]
[1720569632078,3.0,3075.4,3075.1,1.062]
[1720569632265,1.12695958,3075.3,3075.1,1.062]
[1720569632465,1.12695958,3075.2,3075.1,1.062]
[1720569632794,1.12695958,3075.2,3075.1,3.4141]
[1720569632998,1.12695958,3075.2,3075.1,3.75551]
[1720569634396,3.0,3075.9,3075.1,3.75551]
[1720569634559,1.12681906,3075.2,3075.1,2.69351]
[1720569634759,1.12681906,3075.2,3075.1,3.75551]
[1720569635590,1.12681672,3075.2,3075.1,3.75551]
[1720569637891,3.0,3075.9,3075.1,3.75551]
[1720569638237,2.3803,3075.6,3074.5,2.489]
[1720569638529,2.3803,3075.6,3074.9,1.062]
[1720569638530,1.12683522,3075.5,3074.9,1.062]
[1720569638732,0.35071352,3075.4,3074.9,1.062]
[1720569639029,1.12683522,3075.3,3074.9,1.062]
[1720569639736,2.3803,3075.2,3074.9,1.062]
[1720569639939,1.12683522,3075.1,3074.9,1.062]
[1720569640594,4.12683522,3075.1,3074.2,2.489]
[1720569640817,4.12683522,3075.1,3073.9,2.489]
[1720569640818,1.77754874,3075.0,3073.9,2.489]
[1720569641023,3.50713522,3074.9,3074.1,1.062]
[1720569641227,3.0,3074.8,3074.1,1.062]
[1720569641502,1.12723612,3074.7,3074.1,1.062]
[1720569641708,1.12723968,3074.6,3074.1,1.062]
[1720569641934,1.12723968,3074.5,3074.1,1.062]
[1720569642119,3.59303,3074.8,3074.1,1.062]
[1720569642120,1.12723968,3074.4,3074.1,1.062]
[1720569642314,3.59303,3074.8,3074.1,1.062]
[1720569642524,1.1272545,3074.7,3074.1,1.062]
[1720569642724,1.1272545,3074.6,3074.3,1.062]
[1720569643007,1.1272545,3074.5,3074.3,1.062]
[1720569643235,1.1272545,3074.4,3074.3,1.062]
[1720569644753,1.12728242,3074.4,3074.3,1.062]
[1720569645731,3.59303,3074.8,3074.3,1.062]
[1720569645943,2.27462306,3074.7,3074.3,1.062]
[1720569646177,1.12729006,3074.6,3074.3,1.062]
[1720569646372,1.12729006,3074.5,3074.3,1.062]
[1720569646560,1.147333,3074.7,3074.3,1.062]
[1720569646561,1.12729006,3074.6,3074.3,1.062]
[1720569646762,1.12729006,3074.5,3074.3,1.062]
[1720569647074,1.12729006,3074.4,3074.3,1.062]
[1720569647738,1.12729006,3074.5,3074.3,1.062]
[1720569647975,2.416,3074.4,3073.3,2.2758]
[1720569648285,1.12733548,3074.3,3074.0,1.062]
[1720569648667,1.12733548,3074.2,3074.0,1.062]
[1720569648985,4.12733548,3074.3,3073.8,1.062]
[1720569649178,1.12742226,3074.2,3073.8,1.062]
[1720569649362,1.12742226,3074.1,3073.8,1.062]
[1720569649563,1.12742226,3074.2,3073.8,1.062]
[1720569649876,1.69318226,3074.2,3073.8,1.062]
[1720569650083,1.12742226,3074.1,3073.8,1.062]
[1720569650251,1.12742226,3074.1,3073.3,2.2758]
[1720569650457,1.12742226,3074.1,3074.0,1.062]
[1720569650658,3.0,3074.3,3074.0,1.062]
[1720569650659,1.12742226,3074.2,3074.0,1.062]
[1720569650862,1.12742226,3074.1,3074.0,1.062]
[1720569651683,1.12742235,3074.1,3074.0,1.062]
[1720569651859,0.5416,3074.2,3074.0,1.062]
[1720569652177,1.12742977,3074.1,3074.0,1.062]
[1720569652882,1.12737869,3074.1,3074.0,1.062]
[1720569654980,3.0,3074.3,3074.0,1.062]
[1720569655180,2.416,3074.4,3074.0,1.062]
[1720569655181,1.1274139,3074.2,3074.0,1.062]
[1720569655388,0.35434139,3074.2,3074.0,1.062]
[1720569655698,1.1274139,3074.1,3074.0,1.062]
[1720569656247,2.4375,3074.7,3074.0,1.062]
[1720569656553,1.12726525,3074.6,3074.5,1.062]
[1720569656769,1.12726525,3074.6,3074.3,1.062]
[1720569656770,4.12726525,3074.6,3074.3,1.062]
[1720569657088,1.12726525,3074.5,3074.3,1.062]
[1720569657252,1.12726525,3074.4,3074.3,1.062]
[1720569658346,1.12730173,3074.4,3074.3,1.062]
[1720569660455,1.12730173,3074.4,3074.1,1.062]
[1720569660660,1.12730173,3074.3,3073.6,2.2538]
[1720569660860,2.4226,3074.2,3073.9,1.062]
[1720569661085,1.12737313,3074.1,3073.9,1.062]
[1720569661423,1.12737313,3074.0,3073.7,1.062]
[1720569661585,3.0,3074.1,3073.9,1.062]
[1720569661784,1.12741953,3074.0,3073.9,1.062]
[1720569662719,1.12741953,3074.0,3073.7,1.062]
[1720569662921,1.12741953,3073.9,3073.7,1.062]
[1720569663217,1.12741953,3073.8,3073.7,1.062]
[1720569664388,1.12744974,3073.8,3073.7,1.062]
[1720569664807,1.12744974,3073.8,3073.5,1.062]
[1720569664989,1.12744974,3073.7,3073.5,1.062]
[1720569665224,1.12744974,3073.8,3073.5,1.062]
[1720569667812,1.12749936,3073.7,3073.5,1.062]
[1720569668012,0.34066507,3073.9,3073.5,1.062]
[1720569668013,1.12749936,3073.6,3073.5,1.062]
[1720569668222,1.12749936,3073.8,3073.5,1.062]
[1720569669282,1.12749936,3073.8,3073.7,1.062]
[1720569670422,1.12749936,3073.8,3073.7,3.4989]
[1720569671124,1.12738966,3073.8,3073.7,3.4989]
[1720569671484,0.34066507,3073.9,3073.7,3.4989]
[1720569671819,1.12739999,3073.8,3073.7,1.062]
[1720569672224,1.12741896,3073.8,3073.7,1.062]
[1720569674624,1.12740616,3073.8,3073.7,1.062]
[1720569675707,1.12740616,3073.8,3073.7,3.3159]
[1720569675895,1.12740616,3073.8,3073.7,3.64749]
[1720569678053,1.12731921,3073.8,3073.7,3.64749]
[1720569680321,1.12731921,3073.8,3073.7,1.062]
[1720569681180,0.34066507,3073.9,3073.7,1.062]
[1720569681484,1.1273696,3073.8,3073.7,1.062]
[1720569681682,1.12737045,3073.8,3073.7,1.062]
[1720569683352,1.12737045,3073.8,3073.7,3.4747]
[1720569683558,1.12737045,3073.8,3073.7,3.82217]
[1720569684208,1.12737045,3073.8,3073.7,3.4747]
[1720569684393,1.12737045,3073.8,3073.7,1.062]
[1720569684596,0.34066507,3073.9,3073.7,1.062]
[1720569684900,1.12736909,3073.8,3073.7,1.062]
[1720569688023,1.12739756,3073.8,3073.7,1.062]
[1720569688235,1.12739759,3073.8,3073.7,1.062]
[1720569690101,1.12739759,3073.8,3072.8,2.4872]
[1720569690294,0.34066507,3073.9,3073.6,1.062]
[1720569690295,1.12739759,3073.7,3073.6,1.062]
[1720569691519,1.12744329,3073.7,3073.6,1.062]
[1720569691696,0.34066507,3073.9,3073.6,1.062]
[1720569691912,1.12746756,3073.8,3073.6,1.062]
[1720569692090,1.12746756,3073.7,3073.6,1.062]
[1720569692590,1.12746756,3073.7,3073.4,1.062]
[1720569692820,1.12746756,3073.8,3073.6,1.062]
[1720569693130,1.12748198,3073.7,3073.6,1.062]
[1720569694893,1.12746577,3073.7,3073.6,1.062]
[1720569697692,1.12746577,3073.7,3073.6,3.4739]
[1720569698329,1.12742124,3073.7,3073.6,3.82129]
[1720569699339,1.12742124,3073.7,3073.6,3.4739]
[1720569701758,1.12735907,3073.7,3073.6,3.4739]
[1720569702113,2.4136,3075.4,3073.7,2.3919]
[1720569702423,2.4136,3075.4,3073.6,4.062]
[1720569702424,1.12717413,3075.3,3074.7,1.062]
[1720569702625,1.12717413,3075.2,3074.7,1.062]
[1720569702953,1.12717413,3075.1,3074.5,3.4539]
[1720569703133,1.12717413,3075.0,3074.5,3.4539]
[1720569703327,1.12717413,3074.9,3074.5,3.4539]
[1720569703637,0.61601656,3075.3,3074.5,3.4539]
[1720569703638,1.12717413,3074.8,3074.5,3.4539]
[1720569703851,1.12717413,3074.7,3074.5,3.79929]
[1720569704157,1.12717413,3074.6,3074.5,3.79929]
[1720569704322,1.12717413,3074.6,3074.5,3.4539]
[1720569704925,3.34059687,3075.3,3074.5,3.4539]
[1720569705126,1.12696842,3075.2,3074.5,3.4539]
[1720569708359,1.12694335,3075.1,3074.5,3.4539]
[1720569708577,1.12694335,3075.0,3074.6,0.34539]
[1720569708755,1.12694335,3075.2,3074.5,2.3919]
[1720569708960,3.4153,3075.1,3074.1,2.3828]
[1720569709134,1.12694335,3075.0,3074.1,2.3828]
[1720569709336,0.45422434,3074.9,3074.1,2.3828]
[1720569709655,0.45422434,3074.9,3074.1,3.4448]
[1720569709855,1.062,3075.1,3074.1,3.4448]
[1720569710174,0.34059687,3075.3,3074.3,1.062]
[1720569710964,1.12710109,3074.9,3074.3,1.062]
[1720569712882,0.34059687,3075.3,3074.3,1.062]
[1720569713078,0.34059687,3075.3,3074.4,2.4933]
[1720569713303,0.34059687,3075.3,3074.5,0.36203464]
[1720569713508,0.34059687,3075.3,3074.4,2.4933]
[1720569715887,0.34059687,3075.3,3074.5,1.062]
[1720569716091,0.34059687,3075.3,3074.6,2.4261]
[1720569716310,0.34059687,3075.3,3074.7,1.062]
[1720569717697,0.34059687,3075.3,3074.6,2.4261]
[1720569717896,0.34059687,3075.3,3074.6,2.77491]
[1720569722139,1.12694507,3075.2,3074.6,2.77491]
[1720569722295,1.12694507,3075.1,3074.6,2.77491]
[1720569722492,1.12694507,3075.0,3074.7,1.12703935]
[1720569722728,0.34059687,3075.3,3074.7,1.12703935]
[1720569723024,1.12689802,3075.2,3074.8,0.39019494]
[1720569723225,1.12689802,3075.1,3074.8,0.39019494]
[1720569723441,0.34059687,3075.3,3074.8,0.39019494]
[1720569723593,1.12687885,3075.2,3074.9,2.293]
[1720569723932,1.12687885,3075.2,3075.0,0.26831949]
[1720569724130,0.34059687,3075.3,3075.0,0.26831949]
[1720569724300,1.12684187,3075.1,3075.0,0.26831949]
[1720569724702,1.12684187,3075.2,3075.0,0.26831949]
[1720569724912,1.12684187,3075.1,3075.0,0.26831949]
[1720569726233,1.12684187,3075.1,3074.7,2.4997]
[1720569726442,1.12684187,3075.0,3074.7,3.5617]
[1720569726741,0.34059687,3075.3,3074.7,3.5617]
[1720569726944,1.12688467,3075.2,3074.7,3.5617]
[1720569727110,1.12688467,3075.1,3074.7,3.5617]
[1720569727315,1.12688467,3075.0,3074.8,0.35617]
[1720569727523,1.12688467,3074.9,3074.8,0.35617]
[1720569727727,0.34059687,3075.3,3074.8,0.35617]
[1720569728020,1.1268846,3075.2,3074.8,0.35617]
[1720569728235,0.34059687,3075.3,3074.9,0.391787]
[1720569728397,1.12688595,3075.2,3074.9,0.391787]
[1720569728599,1.12688595,3075.1,3074.9,0.391787]
[1720569728936,1.12688165,3075.0,3074.9,0.391787]
[1720569729310,1.12688165,3075.0,3074.5,3.3187]
[1720569729516,1.12688165,3074.9,3074.5,3.3187]
[1720569729704,1.12688165,3074.8,3074.5,3.3187]
[1720569729906,1.12688165,3075.2,3074.6,0.33187]
[1720569731035,1.12688165,3075.2,3074.3,3.3187]
[1720569731236,1.12699819,3075.1,3074.3,3.3187]
[1720569731441,3.77639687,3075.3,3073.9,2.3691]
[1720569731442,1.062,3074.7,3073.9,2.3691]
[1720569731642,1.12699819,3074.6,3073.9,2.670549]
[1720569732303,1.12699819,3074.8,3074.0,1.062]
[1720569732505,1.12699819,3074.9,3074.0,1.062]
[1720569732738,1.12699819,3074.8,3074.1,0.3732549]
[1720569733048,1.12699819,3074.7,3074.1,0.3732549]
[1720569733229,1.12699819,3074.9,3074.1,0.3732549]
[1720569733404,1.61235078,3074.9,3074.0,1.062]
[1720569733741,1.12699819,3074.8,3073.9,2.670549]
[1720569734402,1.12719439,3074.7,3073.9,2.670549]
[1720569734642,1.12719439,3074.6,3073.9,2.670549]
[1720569734945,1.12719439,3074.5,3074.0,0.3732549]
[1720569735148,1.12719439,3074.8,3074.0,0.3732549]
[1720569736356,1.12719439,3074.8,3073.9,2.3691]
[1720569737778,4.54735259,3074.9,3073.9,2.3691]
[1720569738067,1.12722733,3074.8,3073.9,2.3691]
[1720569738280,4.54735259,3074.9,3073.9,2.3691]
[1720569738429,1.12723166,3074.8,3073.9,2.3691]
[1720569738632,1.69469009,3074.7,3073.9,2.3691]
[1720569738875,1.12723166,3074.6,3073.9,2.3691]
[1720569740183,1.12723166,3074.6,3074.0,1.062]
[1720569740484,0.48535259,3074.9,3073.9,2.3691]
[1720569740485,1.12723166,3074.7,3073.9,2.3691]
[1720569740635,1.12723166,3074.6,3073.9,2.3691]
[1720569740980,1.12723166,3074.5,3073.9,2.3691]
[1720569741359,1.12724488,3074.4,3073.9,2.3691]
[1720569741708,1.12724488,3074.3,3073.9,2.3691]
[1720569741999,1.12724488,3074.6,3073.9,2.3691]
[1720569742303,1.12724488,3074.5,3073.9,2.3691]
[1720569742790,1.12724488,3074.4,3073.9,2.3691]
[1720569742954,1.12724488,3074.5,3073.9,2.3691]
[1720569743151,1.12724488,3074.4,3073.9,2.3691]
[1720569743355,1.12724488,3074.7,3073.9,2.71221]
[1720569743556,1.12724488,3074.7,3073.9,2.3691]
[1720569743756,1.65120204,3074.7,3073.9,2.3691]
[1720569744011,1.12724488,3074.6,3073.9,2.3691]
[1720569744296,1.12724488,3074.5,3073.9,2.3691]
[1720569744462,1.12724488,3074.4,3073.9,2.3691]
[1720569744654,0.52395841,3074.6,3073.9,2.3691]
[1720569744890,1.12724591,3074.5,3073.9,2.3691]
[1720569745270,1.12724591,3074.6,3073.9,2.3691]
[1720569745481,1.12724591,3074.5,3073.9,2.3691]
[1720569745657,1.12724591,3074.4,3073.9,2.3691]
[1720569745859,1.12724591,3074.3,3073.9,2.3691]
[1720569746091,1.12724591,3074.2,3073.9,2.3691]
[1720569746307,1.12724591,3074.1,3073.9,2.3691]
[1720569746602,1.12724591,3074.1,3073.2,3.0]
[1720569746603,1.12724591,3074.0,3073.6,3.4572]
[1720569746763,1.65120682,3074.4,3073.7,0.34572]
[1720569746956,1.12724591,3074.3,3073.7,0.34572]
[1720569748114,2.4241,3074.5,3073.7,0.34572]
[1720569748400,1.65132504,3074.4,3073.7,0.34572]
[1720569748572,1.1273009,3074.3,3073.6,3.4572]
[1720569748776,1.1273009,3074.2,3073.6,3.4572]
[1720569748997,1.1273009,3074.3,3073.6,3.4572]
[1720569749191,1.1273009,3074.3,3073.6,2.3952]
[1720569749393,1.12731789,3074.2,3073.6,2.3952]
[1720569749601,1.12731789,3074.1,3073.4,2.4134]
[1720569749795,2.2513,3074.0,3073.4,2.4134]
[1720569749996,1.12731789,3073.9,3073.4,2.4134]
[1720569750530,1.12731789,3073.9,3073.2,3.4754]
[1720569750682,1.12731789,3073.9,3073.3,0.34754]
[1720569750884,1.12731789,3073.9,3073.2,3.4754]
[1720569751494,1.12748402,3073.8,3073.2,3.4754]
[1720569751830,1.12748402,3073.7,3073.2,3.4754]
[1720569752029,1.12748402,3073.9,3073.3,0.34754]
[1720569752231,2.2513,3074.0,3073.3,0.34754]
[1720569752232,1.12748402,3073.8,3073.3,0.34754]
[1720569752431,1.12748402,3073.7,3073.4,1.062]
[1720569752735,1.12748402,3073.6,3073.4,1.062]
[1720569752930,2.2513,3074.0,3073.4,1.062]
[1720569753236,1.12744355,3073.9,3073.4,1.062]
[1720569753435,1.12744355,3073.8,3073.4,1.062]
[1720569753597,1.12744355,3073.7,3073.4,1.062]
[1720569753796,1.12744355,3073.6,3073.3,0.34754]
[1720569754100,2.2513,3074.0,3073.2,2.4134]
[1720569754295,1.127451,3073.9,3073.3,1.062]
[1720569754501,1.127451,3073.8,3073.3,1.062]
[1720569754702,2.2513,3074.0,3073.3,1.062]
[1720569754915,1.12746268,3073.9,3073.3,1.062]
[1720569755148,1.12746268,3073.8,3073.3,1.062]
[1720569755301,1.12746268,3073.7,3073.3,1.062]
[1720569755502,1.12746268,3073.6,3073.3,1.062]
[1720569755705,2.2513,3074.0,3073.3,1.062]
[1720569755930,1.12745597,3073.9,3073.3,1.062]
[1720569756100,2.2513,3074.0,3073.2,2.4134]
[1720569756101,1.12745597,3073.8,3073.2,2.4134]
[1720569756302,1.12745597,3073.7,3073.3,1.062]
[1720569756516,1.12745597,3073.6,3073.3,1.062]
[1720569756717,1.12745597,3073.5,3073.3,1.062]
[1720569756939,1.12745597,3073.9,3073.3,1.062]
[1720569757197,1.12745597,3073.9,3073.3,1.433674]
[1720569758343,3.0,3074.3,3073.5,1.062]
[1720569758547,3.0,3074.3,3073.7,1.062]
[1720569758548,1.12745558,3074.2,3073.7,1.062]
[1720569758754,3.0,3074.3,3073.7,1.062]
[1720569758940,1.12737413,3074.2,3073.7,1.062]
[1720569759107,1.12737413,3074.1,3073.7,1.062]
[1720569759308,1.12737413,3074.2,3072.8,2.3248]
[1720569759654,1.12737413,3074.2,3073.3,3.3868]
[1720569761940,4.30386129,3074.3,3073.3,3.3868]
[1720569761941,1.12740691,3074.1,3073.3,3.3868]
[1720569762136,1.12740691,3074.0,3073.3,3.3868]
[1720569762446,1.12740691,3073.9,3073.3,3.72548]
[1720569762616,1.12740691,3074.2,3073.3,3.72548]
[1720569763715,1.12740691,3074.2,3073.3,2.66348]
[1720569763716,2.4165,3074.1,3073.3,2.66348]
[1720569763919,2.4165,3074.1,3073.2,1.062]
[1720569763920,1.12740691,3074.0,3073.2,1.062]
[1720569764115,1.67740691,3074.0,3073.2,1.062]
[1720569764322,1.12740691,3073.9,3073.2,1.062]
[1720569765153,0.55,3074.0,3073.2,1.062]
[1720569765458,1.12753393,3073.9,3073.2,1.40068]
[1720569765755,1.12753393,3073.8,3073.2,1.40068]
[1720569765957,1.12753393,3073.9,3073.2,1.40068]
[1720569768723,1.12751868,3073.8,3073.2,1.40068]
[1720569768947,1.12751868,3073.7,3073.2,1.40068]
[1720569769145,1.1275201,3073.6,3073.2,1.40068]
[1720569769353,1.1275201,3073.5,3073.2,1.40068]
[1720569769524,1.1275201,3073.9,3073.2,1.40068]
[1720569769719,1.12747438,3073.8,3073.2,1.40068]
[1720569770061,1.12747438,3073.7,3073.2,1.40068]
[1720569770262,1.12747438,3073.9,3073.2,1.40068]
[1720569770466,1.12747438,3073.9,3073.2,1.062]
[1720569772061,1.12751997,3073.8,3073.2,1.062]
[1720569772267,1.12751997,3073.7,3073.2,1.062]
[1720569772438,1.12751997,3073.9,3073.2,1.062]
[1720569772764,1.12751997,3073.8,3073.2,1.062]
[1720569772965,1.12751997,3073.7,3073.2,1.062]
[1720569773150,0.60676734,3074.0,3073.2,1.062]
[1720569773347,1.12751489,3073.9,3073.2,1.062]
[1720569775349,1.65181898,3073.9,3073.2,1.062]
[1720569775555,0.60676734,3074.0,3073.2,1.062]
[1720569775865,1.12751399,3073.9,3073.2,1.062]
[1720569776062,1.65181134,3073.9,3073.2,1.062]
[1720569776242,1.12751399,3073.8,3073.2,1.062]
[1720569778535,1.062,3073.5,3072.6,7.47]
[1720569778737,2.3084,3073.1,3072.1,1.062]
[1720569778981,1.65181134,3073.0,3072.1,1.062]
[1720569779164,1.65272997,3072.9,3072.1,1.062]
[1720569779364,1.67792098,3072.8,3072.1,1.062]
[1720569779567,1.65281819,3072.7,3072.1,1.062]
[1720569779841,2.3084,3072.5,3071.1,2.2725]
[1720569780082,1.65299963,3072.4,3071.4,1.062]
[1720569780380,2.07409998,3072.3,3071.4,1.062]
[1720569780585,1.65299963,3072.2,3071.4,1.062]
[1720569780879,1.12796002,3072.1,3071.4,1.062]
[1720569781040,1.65299963,3072.1,3071.4,1.062]
[1720569781237,1.6530965,3072.0,3071.4,1.062]
[1720569781451,1.12796002,3071.9,3071.2,1.062]
[1720569781648,1.12821842,3071.8,3071.2,1.39545]
[1720569781860,1.12821842,3071.7,3071.2,1.39545]
[1720569782061,1.12821842,3071.6,3071.2,1.39545]
[1720569782283,1.12821842,3072.0,3071.2,1.39545]
[1720569782448,1.12821842,3072.1,3071.3,0.366795]
[1720569782774,1.12821842,3072.0,3071.4,1.062]
[1720569782987,3.94613996,3072.3,3071.4,1.062]
[1720569782988,1.12821842,3072.2,3071.4,1.062]
[1720569783972,1.12821842,3072.6,3072.1,1.062]
[1720569784177,1.12797505,3072.5,3072.2,0.34607]
[1720569784347,2.4609,3073.3,3072.3,1.062]
[1720569784548,2.18988203,3073.2,3072.3,1.062]
[1720569784850,1.12788203,3073.1,3072.1,1.062]
[1720569785062,1.59296023,3073.1,3072.1,1.40807]
[1720569785270,2.18988203,3073.0,3072.1,1.40807]
[1720569785473,1.12788203,3072.9,3072.1,0.34607]
[1720569785783,4.12788203,3072.9,3072.1,0.34607]
[1720569785981,1.12788203,3072.8,3072.2,0.274477]
[1720569786346,1.12788203,3072.9,3072.2,0.274477]
[1720569787153,1.12788203,3072.8,3072.2,0.274477]
[1720569787459,1.12788203,3073.0,3072.2,0.274477]
[1720569787687,1.12788203,3072.9,3072.2,0.274477]
[1720569787860,3.0,3073.2,3072.2,0.274477]
[1720569788061,1.67783706,3073.1,3072.2,0.274477]
[1720569788265,1.12783706,3073.0,3072.2,0.274477]
[1720569788463,0.55,3073.1,3072.2,0.274477]
[1720569788661,1.12783609,3072.9,3072.2,0.274477]
[1720569788850,1.12783609,3072.8,3072.2,0.274477]
[1720569789053,0.55,3073.1,3072.2,0.274477]
[1720569789267,1.12781264,3073.0,3072.2,0.274477]
[1720569789561,1.12781264,3072.9,3072.2,0.274477]
[1720569789763,1.12783737,3072.8,3072.0,2.3987]
[1720569789958,0.409609,3073.0,3072.0,2.3987]
[1720569790159,1.12784818,3072.9,3072.0,2.3487]
[1720569790350,1.67784818,3072.8,3072.0,2.3487]
[1720569790552,1.12784818,3072.7,3072.0,2.3487]
[1720569792188,1.12795291,3072.6,3072.0,2.3487]
[1720569792361,1.12795291,3072.5,3072.0,2.3487]
[1720569792689,3.0,3073.2,3072.0,2.3487]
[1720569792917,0.05678958,3073.0,3072.0,2.3487]
[1720569793117,1.12795176,3072.9,3072.0,2.3487]
[1720569795418,0.05678958,3073.0,3072.0,2.3487]
[1720569795585,1.12792445,3072.9,3072.0,2.3487]
[1720569795789,0.05678958,3073.0,3072.0,2.3487]
[1720569795987,1.12780902,3072.9,3072.2,2.4561]
[1720569796187,0.05678958,3073.0,3072.2,2.4561]
[1720569796544,1.12780115,3072.9,3072.2,2.4561]
[1720569796721,0.05678958,3073.0,3072.2,2.4561]
[1720569796882,1.1278058,3072.9,3072.4,2.2778]
[1720569797082,0.05678958,3073.0,3072.4,2.2778]
[1720569797282,1.1277926,3072.9,3072.4,2.2778]
[1720569797486,0.05678958,3073.0,3072.4,2.2778]
[1720569797790,1.12779192,3072.9,3072.5,0.252341]
[1720569798023,0.05678958,3073.0,3072.5,0.252341]
[1720569798182,1.1277922,3072.9,3072.5,0.252341]
[1720569798383,0.05678958,3073.0,3072.5,0.252341]
[1720569798893,1.12778538,3072.9,3072.5,0.252341]
[1720569799124,0.05678958,3073.0,3072.5,0.252341]
[1720569799309,1.12779641,3072.9,3072.5,0.252341]
[1720569799508,0.05678958,3073.0,3072.5,0.252341]
[1720569799714,1.12778662,3072.9,3072.5,0.252341]
[1720569799896,0.05678958,3073.0,3072.5,0.252341]
[1720569800101,1.1277868,3072.9,3072.5,0.252341]
[1720569800309,1.1277746,3072.8,3072.5,0.252341]
[1720569800495,0.05678958,3073.0,3072.5,0.252341]
[1720569800711,1.12778511,3072.9,3072.5,0.252341]
[1720569800912,1.12778511,3072.8,3072.5,0.252341]
[1720569801103,1.12778511,3072.9,3072.5,0.252341]
[1720569801313,1.1277923,3072.8,3072.4,2.2778]
[1720569801538,0.05678958,3073.0,3072.4,2.2778]
[1720569801706,1.12777378,3072.9,3072.4,2.2778]
[1720569801916,1.12777378,3072.8,3072.4,2.2778]
[1720569802115,0.05678958,3073.0,3072.4,2.2778]
[1720569802335,1.12777947,3072.9,3072.4,2.2778]
[1720569802534,1.67777947,3072.8,3071.5,2.2778]
[1720569802708,0.16777795,3072.7,3071.5,2.2778]
[1720569802910,1.84555742,3072.7,3071.5,2.2778]
[1720569803111,1.12777947,3072.6,3071.5,2.2778]
[1720569803297,1.65284695,3072.8,3071.5,2.2778]
[1720569803499,1.67777947,3072.7,3071.5,2.2778]
[1720569803798,1.34806417,3072.6,3071.5,2.2778]
[1720569804040,1.12777947,3072.5,3071.5,2.2778]
[1720569805745,1.12814516,3072.4,3071.5,2.2778]
[1720569805908,1.12814516,3072.3,3071.5,2.2778]
[1720569806237,1.12814516,3072.2,3071.5,2.2778]
[1720569806395,1.12814516,3072.2,3071.0,2.3355]
[1720569806595,1.12814516,3072.1,3071.0,2.3355]
[1720569806795,1.12814516,3072.2,3071.0,2.3355]
[1720569807036,1.65665516,3072.2,3071.1,0.23355]
[1720569807196,1.12814516,3072.1,3071.0,2.3355]